Cogmind - Beta 16.1 @@@ ROGUE MODE // 2026.04.27 @ 17:44:00 Player: DwarfFeats Result: Self-destructed Performance ------------- Evolutions (3) 1500 Regions Visited (5) 1000 Robots Destroyed (61) 305 Value Destroyed (2019) 2019 Prototype IDs (2) 40 Alien Tech Used (0) 0 Bonus (0) 0 TOTAL SCORE: 4864 Bonus ------- None Cogmind --------- Core Integrity 49/700 Matter 159/300 Energy 84/100 System Corruption 14% Temperature Warm (120) Movement Core (150) Ox2 Location -7/Factory Parts ------- > --- POWER (2) -------- (None) > --- PROPULSION (4) --- (None) > --- UTILITY (4) ------ Improved Heat Sink Advanced Targeting Computer Hardened Light Armor Plating > --- WEAPON (3) ------- Improved EM Shotgun > --- INVENTORY (5) ---- High-capacity Matter Pod (200) Peak State ------------ > --- POWER ------------ Light Nuclear Core Light Nuclear Core > --- PROPULSION ------- Light Treads Light Treads Light Treads Armored Treads > --- UTILITY ---------- Improved Heat Sink Advanced Heat Sink Advanced Targeting Computer Improved Weapon Shielding > --- WEAPON ----------- Heavy Laser Heavy Laser Heavy Laser > --- INVENTORY -------- Thermal Generator Improved Heat Sink Targeting Computer Targeting Computer Hardened Light Armor Plating [Rating: 39] Favorites ----------- Power Improved Ion Engine Engine Improved Ion Engine Power Core Light Nuclear Core Propulsion Light Treads Treads Light Treads Leg Aluminum Leg Wheel Wheel Utility Large Storage Unit Device Shield Generator Storage Large Storage Unit Processor Advanced Targeting Computer Protection Hardened Light Armor Plating Weapon Autogun Energy Gun Particle Gun Ballistic Gun Autogun Launcher Grenade Launcher Build | -11 -10 -9 -9 -8 -7 ------- Run | Yrd Mat Mat Sto Mat Fac Slots Evolved 6 | . . 2 . 2 2 Power 1 | . . . . . 1 Propulsion 2 | . . . . 2 . Utility 2 | . . 2 . . . Weapon 1 | . . . . . 1 Parts Attached 67 | 6 11 11 4 20 15 Power 8 | 1 1 1 1 2 2 Engine 6 | 1 1 1 1 1 1 Core 2 | . . . . 1 1 Reactor . | . . . . . . Propulsion 20 | 2 5 1 . 11 1 Treads 11 | . 2 . . 9 . Leg 6 | . 3 1 . 1 1 Wheel 3 | 2 . . . 1 . Hover . | . . . . . . Flight . | . . . . . . Utility 20 | 1 2 4 3 3 7 Device 5 | . . . . 1 4 Storage 6 | 1 2 . 2 1 . Processor 1 | . . . . . 1 Hackware . | . . . . . . Protection 8 | . . 4 1 1 2 Artifact . | . . . . . . Weapon 19 | 2 3 5 . 4 5 Energy Gun 13 | 1 3 2 . 2 5 Energy Cannon . | . . . . . . Ballistic Gun 5 | 1 . 2 . 2 . Ballistic Cannon . | . . . . . . Launcher 1 | . . 1 . . . Special Weapon . | . . . . . . Impact Weapon . | . . . . . . Slashing Weapon . | . . . . . . Piercing Weapon . | . . . . . . Special Melee Weapon . | . . . . . . Unidentified Prototypes 2 | . . . . . 2 Parts Lost 27 | . 1 1 . 9 16 Power 4 | . . . . 1 3 Propulsion 10 | . 1 1 . 4 4 Utility 5 | . . . . 1 4 Weapon 8 | . . . . 3 5 Highest Loss Streak 11 | . 1 1 . 7 11 To Critical Strikes 1 | . . 1 . . . Average Backups 14 | 3 8 13 13 20 4 Power 1 | . . . 1 2 . Propulsion 2 | 2 3 3 2 2 . Utility 5 | . 1 3 4 8 3 Weapon 5 | . 3 5 5 7 1 Tool/Special . | . . . . . . Unused Backups 23 | 1 4 3 . 9 6 Power 3 | 1 1 . . 1 . Propulsion 5 | . 3 1 . 1 . Utility 10 | . . 1 . 4 5 Weapon 5 | . . 1 . 3 1 Tool/Special . | . . . . . . Average Slot Usage (%) 96 | . 91 99 100 95 79 Engine 9 | . 14 11 11 7 . Core 1 | . . . . 1 10 Treads 17 | . 12 18 . 32 22 Leg 7 | . 4 3 22 . . Device 2 | . . . . 5 11 Storage 24 | . 20 22 30 27 1 Protection 10 | . . 21 13 2 5 Energy Gun 7 | . 18 12 . 3 18 Ballistic Gun 13 | . 9 9 22 13 . Peak Build Rating 39 | 6 10 15 16 34 39 Average Rating 19 | 2 7 14 15 28 30 On Entrance 12 | . 6 10 15 15 27 Avg Prop Armor Cover (%) 3 | . . . . 3 . Naked Turns . | . . . . . . Heaviest Build 142 | 13 49 61 82 142 26 Greatest Support 112 | 20 40 40 20 112 80 Greatest Overweight (x) 4 | 3 1 3 4 2 1 Average Overweight (x) 1 | . . 1 3 1 . Largest Inventory Capacity 25 | 8 15 15 20 25 25 Average Capacity 17 | 7 11 15 18 24 6 Most Carried 25 | 8 15 15 15 25 20 Average Carried 14 | 4 8 13 13 20 4 Final Capacity 25 | 8 15 15 20 25 5 Final Carried 21 | 5 12 13 13 21 1 Class Distribution -------------------- 95% | Mutant 4% | Scavenger-Gunner Dominant Class ---------------- Mutant | -10/Materials Mutant | -9/Materials Mutant | -9/Storage Mutant | -8/Materials Scavenger-Gunner | -7/Factory Resources | -11 -10 -9 -9 -8 -7 ----------- Run | Yrd Mat Mat Sto Mat Fac Matter Collected 2010 | 189 175 270 568 691 117 Remotely . | . . . . . . Salvage Created 2406 | . 161 363 453 1202 227 Parts 133 | . 11 18 39 63 2 Haulers Intercepted 1 | . . . . 1 . Recyclers Shooed 7 | . 2 . 3 2 . Parts Field Recycled . | . . . . . . Retrieved Matter . | . . . . . . Parts Self-Destructed . | . . . . . . Prevented . | . . . . . . Parts Restored . | . . . . . . Kills | -11 -10 -9 -9 -8 -7 ------- Run | Yrd Mat Mat Sto Mat Fac Combat Hostiles Destroyed 62 | . 5 10 14 22 11 Guns 58 | . 5 6 14 22 11 AOE 4 | . . 4 . . . Classes Destroyed 9 | . 3 3 . 1 2 Hauler 1 | . . . . 1 . Recycler 3 | . . 1 . 1 1 Watcher 4 | . 1 1 2 . . Swarmer 12 | . 2 3 7 . . Grunt 27 | . 3 4 4 15 1 Brawler 2 | . . 1 . 1 . Sentry 11 | . . 2 3 6 . Demolisher 1 | . . . . . 1 Assembled 9 | . . . . . 9 Best Kill Streak 6 | . 2 4 3 5 6 Combat Bots Only 6 | . 2 4 3 5 6 Max Kills in Single Turn 2 | . 1 2 1 1 1 Gunslinging . | . . . . . . Exploded 2 | . . 2 . . . Melee . | . . . . . . Uniques/NPCs Destroyed . | . . . . . . Combat | -11 -10 -9 -9 -8 -7 -------- Run | Yrd Mat Mat Sto Mat Fac Hostile Shots Fired 561 | . 78 81 87 173 142 Missed 153 | . 26 22 24 47 34 Hits 408 | . 52 59 63 126 108 Melee 29 | . . 3 . . 26 Projectile 379 | . 52 56 63 126 82 AOE 14 | . . . . . 14 Critical Strikes 14 | . 1 2 1 3 7 Actively Blocked 1 | . . . . . 1 Part Disruptions 1 | . . . . . 1 Damage Taken 5940 | . 548 851 643 1671 2227 Core 1146 | . 165 87 84 159 651 Absorbed by Shields 303 | . . . . 303 . Redirected to Shielding 87 | . . . . . 87 Regen/Repaired (Parts) 71 | . . 51 . 20 . Core Remaining (%) 65 | 100 34 . 57 71 . Volleys Fired 200 | . 26 29 37 85 23 Largest 3 | . 2 2 2 2 3 Hottest 207 | . 130 130 46 94 207 Shots Fired 387 | . 52 55 74 156 50 Gun 384 | . 52 52 74 156 50 Cannon . | . . . . . . Launcher 3 | . . 3 . . . Special . | . . . . . . Kinetic 241 | . 18 19 74 125 5 Thermal 143 | . 34 33 . 31 45 Explosive 3 | . . 3 . . . Electromagnetic . | . . . . . . Robot Hit Streak 26 | . 5 5 7 26 8 Robot Miss Streak 6 | . 4 3 6 4 5 Penetration Max . | . . . . . . Secondary Targets 9 | . . 1 3 2 3 Max Gunslinging Chain 1 | . . 1 1 1 1 Shots Hit Robots 243 | . 29 30 41 116 27 Core Hits 125 | . 12 19 21 56 17 Critical Kills 1 | . . . . . 1 Critical Parts Destroyed 3 | . . . 2 1 . Critical Strikes 7 | . . . 2 3 2 Burn 3 | . . . . 2 1 Destroy 4 | . . . 2 1 1 Melee Attacks . | . . . . . . Impact . | . . . . . . Slashing . | . . . . . . Piercing . | . . . . . . Sneak Attacks . | . . . . . . Combat Hostiles . | . . . . . . Follow-up Attacks . | . . . . . . Damage Inflicted 4463 | . 385 803 728 1914 633 Guns 4063 | . 381 453 686 1910 633 Cannons . | . . . . . . Explosions 340 | . . 340 . . . Melee . | . . . . . . Ramming 60 | . 4 10 42 4 . Kinetic 2574 | . 158 130 686 1515 85 Thermal 1489 | . 223 323 . 395 548 Explosive 340 | . . 340 . . . Electromagnetic . | . . . . . . Impact . | . . . . . . Slashing . | . . . . . . Piercing . | . . . . . . Highest Corruption 14 | . . . . 2 14 Average Corruption 3 | . . . . 2 12 Corruption Purged . | . . . . . . Corruption Blocked . | . . . . . . Effects 13 | . . . . 9 4 Message Errors 2 | . . . . 1 1 Matter Fused 8 | . . . . 6 2 Heat Flow Errors 1 | . . . . . 1 Parts Rejected 1 | . . . . 1 . Data Loss (major) 1 | . . . . 1 . Overload Shots . | . . . . . . Overflow Damage . | . . . . . . Projectiles . | . . . . . . Explosions . | . . . . . . Melee . | . . . . . . Knockbacks . | . . . . . . Impact . | . . . . . . Kinetic . | . . . . . . Secondary . | . . . . . . Self-Inflicted Damage 152 | . . 152 . . . Shots 3 | . . 3 . . . Rammed 5 | . . 2 . 3 . Targets Rammed 17 | . 1 3 10 3 . Kicked 12 | . 1 1 10 . . Crushed . | . . . . . . Highest Temperature 442 | . 375 412 144 251 442 Average Temperature 120 | . 113 173 34 73 229 Received Heat Transfer 1846 | . 225 177 150 800 494 Effects 15 | . 1 7 . . 7 Shutdowns 2 | . . 1 . . 1 Energy Bleed 4 | . 1 1 . . 2 Interference 7 | . . 4 . . 3 Matter Decay 2 | . . 1 . . 1 Siege Activations . | . . . . . . Martial Activations . | . . . . . . Shielding Activations . | . . . . . . Robots Disrupted . | . . . . . . Combat Hostiles . | . . . . . . Robots Corrupted . | . . . . . . Combat Hostiles . | . . . . . . Parts Fried . | . . . . . . Impact Corruptions . | . . . . . . Robots Melted . | . . . . . . Combat Hostiles . | . . . . . . Parts Melted 1 | . . . . 1 . Heat Transferred 3333 | . 521 740 . 925 1147 Parts Sabotaged . | . . . . . . Parts Stolen . | . . . . . . Parts Stripped . | . . . . . . Power Chain Reactions . | . . . . . . Alert | -11 -10 -9 -9 -8 -7 ------- Run | Yrd Mat Mat Sto Mat Fac Maximum Alert Level 1 | . . 1 . 1 . Low Security (%) 93 | 100 100 97 100 79 100 Level 1 6 | . . 2 . 20 . Level 2 . | . . . . . . Level 3 . | . . . . . . Level 4 . | . . . . . . Level 5 . | . . . . . . High Security . | . . . . . . Max Security . | . . . . . . Peak Influence 238 | . 72 217 176 238 97 Initial 97 | . . 9 8 4 97 Average 73 | . 26 69 85 92 40 Influence Increases 1733 | . 212 370 419 656 76 Destroy 0b10 Robot/C 1060 | . 100 200 280 440 40 Destroy 0b10 Robot/NC 40 | . 5 10 10 10 5 Destroy Leader 250 | . 32 42 54 122 . Successful Hack 7 | . . . . 7 . Disable Machine 75 | . . 60 . . 15 Destroy Structure 61 | . . 58 . 2 1 Lose Combat Pursuer 240 | . 75 . 75 75 15 Influence Decreases 1723 | . 190 372 428 453 280 Entered New Map 149 | . . 13 12 7 117 Time Decay 1447 | . 180 359 416 372 120 Lost Part 127 | . 10 . . 74 43 Squads Dispatched 6 | . 1 . . 3 2 Investigation 3 | . . . . 2 1 Extermination . | . . . . . . Reinforcement 3 | . 1 . . 1 1 Assault . | . . . . . . Garrison . | . . . . . . Intercept . | . . . . . . Searches Triggered . | . . . . . . Construction Impeded . | . . . . . . Haulers Reinforced . | . . . . . . Active Scanning Responses . | . . . . . . Cargo Convoy Interrupts . | . . . . . . Stealth | -11 -10 -9 -9 -8 -7 --------- Run | Yrd Mat Mat Sto Mat Fac Distress Signals 6 | . 1 1 2 2 . Communications Jammed . | . . . . . . Distress Signals . | . . . . . . Times Spotted 107 | . 16 15 21 31 24 Peak Tracking Total 10 | . 4 5 6 6 10 Tactical Retreats 10 | . 2 . 3 4 1 Traps | -11 -10 -9 -9 -8 -7 ------- Run | Yrd Mat Mat Sto Mat Fac Traps Triggered 4 | . . . 1 1 2 Indirectly . | . . . . . . Trap Hack Attempts . | . . . . . . Triggered . | . . . . . . Disarmed . | . . . . . . Reprogrammed . | . . . . . . Reused . | . . . . . . Traps Extracted . | . . . . . . Installed . | . . . . . . Triggered . | . . . . . . Machines | -11 -10 -9 -9 -8 -7 ---------- Run | Yrd Mat Mat Sto Mat Fac Machines Disabled 5 | . . 4 . . 1 Max in Single Turn 3 | . . 3 . . 1 Machines Repaired . | . . . . . . Machines Dismantled . | . . . . . . Machines Sabotaged . | . . . . . . Overloaded Fab Kills . | . . . . . . Hacking | -11 -10 -9 -9 -8 -7 --------- Run | Yrd Mat Mat Sto Mat Fac Machines Accessed 9 | . 2 2 2 3 . Terminals 5 | . 2 1 1 1 . Fabricators . | . . . . . . Repair Stations 3 | . . 1 1 1 . Recycling Units . | . . . . . . Scanalyzers . | . . . . . . Garrison Access 1 | . . . . 1 . Total Hacks 26 | . 4 6 6 10 . Successful 11 | . 1 4 1 5 . Failed 15 | . 3 2 5 5 . Catastrophic . | . . . . . . Database Lockouts . | . . . . . . Manual 5 | . 2 2 . 1 . Terminals 12 | . 4 3 2 3 . Fabricators . | . . . . . . Repair Stations 13 | . . 3 4 6 . Recycling Units . | . . . . . . Scanalyzers . | . . . . . . Garrison Access 1 | . . . . 1 . Terminal Hacks 4 | . 1 2 . 1 . Record 2 | . 1 1 . . . Alert Level 1 | . . . . 1 . Locate Traps 1 | . . 1 . . . Fabricator Hacks . | . . . . . . Repair Station Hacks 6 | . . 2 1 3 . Scan Component 4 | . . 1 1 2 . Repair 2 | . . 1 . 1 . Recycling Unit Hacks . | . . . . . . Scanalyzer . | . . . . . . Garrison Access Hacks 1 | . . . . 1 . Unlock Access 1 | . . . . 1 . Unauthorized Hacks . | . . . . . . Terminals . | . . . . . . Fabricators . | . . . . . . Repair Stations . | . . . . . . Recycling Units . | . . . . . . Scanalyzers . | . . . . . . Garrison Access . | . . . . . . Data Cores Recovered . | . . . . . . Used . | . . . . . . Hacking Detections 8 | . 2 2 2 2 . Full Trace Events 4 | . 1 1 . 2 . Feedback Events . | . . . . . . Feedback Blocked . | . . . . . . Robot Schematics Acquired . | . . . . . . Robots Built . | . . . . . . Authchips . | . . . . . . Time . | . . . . . . Total Robot Build Rating . | . . . . . . Part Schematics Acquired . | . . . . . . Parts Built . | . . . . . . Authchips . | . . . . . . Time . | . . . . . . Total Part Build Rating . | . . . . . . Part Studies Acquired . | . . . . . . Parts Repaired 2 | . . 1 . 1 . Time 58 | . . 26 . 32 . Parts Recycled . | . . . . . . Recycled Matter . | . . . . . . Retrieved Matter . | . . . . . . Retrieved Components . | . . . . . . Parts Scanalyzed . | . . . . . . Part Schematics Acquired . | . . . . . . Parts Damaged . | . . . . . . Bothacking | -11 -10 -9 -9 -8 -7 ------------ Run | Yrd Mat Mat Sto Mat Fac Used RIF Installer . | . . . . . . Robots Hacked . | . . . . . . Non-combat . | . . . . . . Combat . | . . . . . . Robot Hacks Applied . | . . . . . . Relay Couplers Released . | . . . . . . Fabnet Peak Effective % . | . . . . . . Robots Rewired . | . . . . . . Allies Hacked . | . . . . . . Hacks Repelled . | . . . . . . Allies | -11 -10 -9 -9 -8 -7 -------- Run | Yrd Mat Mat Sto Mat Fac Total Allies . | . . . . . . Largest Group . | . . . . . . Highest-Rated Group . | . . . . . . Highest-Rated Ally . | . . . . . . Total Orders . | . . . . . . Ally Attacks . | . . . . . . Total Damage . | . . . . . . Kills . | . . . . . . Allies Corrupted . | . . . . . . Allies Melted . | . . . . . . Intel | -11 -10 -9 -9 -8 -7 ------- Run | Yrd Mat Mat Sto Mat Fac Active Infowar (turns) . | . . . . . . Robot Analysis Total . | . . . . . . Derelict Logs Recovered . | . . . . . . Drone Launches . | . . . . . . Drone Recoveries . | . . . . . . Exploration | -11 -10 -9 -9 -8 -7 ------------- Run | Yrd Mat Mat Sto Mat Fac Turns Passed 4958 | 68 476 1292 1336 1499 287 Spaces Moved 1674 | 54 268 450 320 454 128 Core 67 | 36 . . . . 31 Treads 992 | . 74 392 . 442 84 Legs 448 | . 45 58 320 12 13 Wheels 167 | 18 149 . . . . Hover . | . . . . . . Flight . | . . . . . . Fastest Speed 50 | 50 80 240 330 160 50 Average Speed 240 | 93 131 250 372 249 135 Slowest Speed 400 | 200 240 400 400 320 190 Overloaded Moves . | . . . . . . Propulsion Burnouts . | . . . . . . Robots Hopped . | . . . . . . Potential Cave-ins . | . . . . . . Cave-ins Triggered . | . . . . . . Exploration Rate (%) 27 | 3 36 25 54 44 4 Regions Visited 5 Branch Regions 1 Pre-discovered Areas 1 | . . . 1 . . Known Exits Taken . | . . . . . . Unknown Exits Taken 5 | 1 1 1 1 1 . Scrap Searched . | . . . . . . Spaces Dug . | . . . . . . Terrain Destroyed 57 | . . 57 . . . Melee . | . . . . . . Projectile . | . . . . . . AOE 57 | . . 57 . . . Terrain Rammed . | . . . . . . Walls Destroyed . | . . . . . . Machines Disabled . | . . . . . . Actions | -11 -10 -9 -9 -8 -7 --------- Run | Yrd Mat Mat Sto Mat Fac Total 2260 | 72 343 564 383 686 212 Wait 113 | . 7 39 . 64 3 Move 1669 | 53 267 449 319 453 128 Hop . | . . . . . . Pick Up 109 | 12 19 17 6 39 16 Fast Attach 1 | . 1 . . . . Attach 44 | 6 4 6 . 14 14 Detach 2 | . 1 1 . . . Swap 31 | . 6 8 5 10 2 Drop 74 | 1 11 12 6 18 26 Fire 200 | . 26 29 37 85 23 Melee . | . . . . . . Ram . | . . . . . . Kick 12 | . 1 1 10 . . Crush 5 | . . 2 . 3 . Escape Stasis . | . . . . . . Rewire . | . . . . . . Trap . | . . . . . . Miscellaneous . | . . . . . . Route ------- -11/Scrapyard -10/Materials -9/Materials -9/Storage -8/Materials (discovered 2 exits: [*Fac] / Gar) -7/Factory History --------- Turn | Location | Event 15 | -11/Scrapyard | Discovered new exit (range 14) 69 | -11/Scrapyard | Entered Materials 305 | -10/Materials | Build established: Mutant 498 | -10/Materials | Discovered new exit (range 10) 502 | -10/Materials | Core integrity fell below 50% 545 | -10/Materials | Entered another Materials area 545 | -9/Materials | Evolved 2 slots: Utility x2 602 | -9/Materials | Repaired Lgt. Treads 1104 | -9/Materials | Discovered new exit (range 9) 1837 | -9/Materials | Entered Storage 2457 | -9/Storage | Learned location of Armory (-4) 3145 | -9/Storage | Discovered new exit (range 8) 3173 | -9/Storage | Entered Materials 3173 | -8/Materials | Evolved 2 slots: Propulsion x2 3274 | -8/Materials | Identified exit to Garrison 4029 | -8/Materials | Repaired Shield Generator 4411 | -8/Materials | Lost 7 parts (1p4n1u1w) 4498 | -8/Materials | Discovered new exit (range 16) 4672 | -8/Materials | Entered Factory 4672 | -7/Factory | Evolved 2 slots: Power x1, Weapon x1 4841 | -7/Factory | Assembled infested ambush trap array 4886 | -7/Factory | System corruption reached 10% 4900 | -7/Factory | Core integrity fell below 50% 4927 | -7/Factory | Lost 11 parts (2p3n3u3w) 4945 | -7/Factory | Core integrity fell below 20% 4959 | -7/Factory | Self-destructed Last Messages --------------- 04936_ Imp. EM Shotgun destroyed. 04938_ System corrupted: Matter fused (-6). 04939_ K-01 Serf collects debris. 04939_ Acquired Hrd. Light Armor Plating. 04940_ Cld. Ion Engine destroyed. 04940_ K-01 Serf destroyed. 04940_ D-53 Grenadier destroyed. 04943_ The unstable cave ceiling collapses. 04944_ Acquired Hpw. Shotgun. 04946_ Imp. Carbon-fiber Leg destroyed. 04948_ D-53 Grenadier suffers critical hit (Destroy). 04948_ D-53 Grenadier destroyed. 04948_ Thermal Generator destroyed. 04952_ G-47 Trooper destroyed. 04954_ System corrupted: Heat flow error (+248). 04954_ Hpw. Shotgun destroyed. 04956_ The unstable cave ceiling collapses. 04957_ Acquired Imp. EM Shotgun. 04957_ Critical hit (Burn: +37). Map ----- +----------------------------------------------------+ | | | | | | | | | | | ???????????????#" ""########??????????????? | | ?????????????### #??????????????? | | ###########??# #??????????????? | | # #??# #??????????????? | | # #??# #??????????????? | | ####" #??????????????? | | !!! / #??????????????? | | !!! # ##"" #??????????????? | | !!! # ## #??????????????? | | # ## ""# ###########???????????? | | # ## ??????????? | | +#####+### ####"";; g # ??????????? | | #???# #?# g ?????????? | | #???# ###+######## # ?????????? | | #???# ## g ] ?????????? | | ? ## %* ?????????? | | ####### ## """""" # ?????????? | | ??????# ## """""" # ?????????? | | ??????# ## """""" ?????????? | | ??????? ?# """""" ??????????? | | ??????? ?# @[!#? ???????????? | | ??????? ?# """""" ! [ #??? ???????????? | | ??????? ?# """""" ! #???#####???????????? | | ??????? ?# """""" ! !##???????????????????? | | ??????? ?# """""" ## ####????????????????????? | | ??????? ?# ## ???????????????????????? | | ?????????######+######## ???????????????????????? | | ??????????????# #??????# ???????????????????????? | | ?????????????? #??????# ???????????????????????? | | ?????????????? #??????###???????????????????????? | | ????????????? ????????????????????????????????? | | ????????????? ????????????????????????????????? | | ???????????? ????????????????????????????????? | | ???????????? ????????????????????????????????? | | ???????????## ????????????????????????????????? | | ????????????###+#????????????????????????????????? | | ?????????????????????????????????????????????????? | | ?????????????????????????????????????????????????? | | ?????????????????????????????????????????????????? | | ?????????????????????????????????????????????????? | | ?????????????????????????????????????????????????? | | ?????????????????????????????????????????????????? | | ?????????????????????????????????????????????????? | | ?????????????????????????????????????????????????? | | ?????????????????????????????????????????????????? | +----------------------------------------------------+ Best States ------------- Heat Dissipation 67 Energy Generation 23 Energy Capacity 280 Matter Stores 500 Matter Capacity 500 Sight Range 16 Terrain Scan Density 10 Armor Coverage 300 Weapon Shielding 66 Evasion (%) 55 Targeting Accuracy 8 Recoil Reduction 4 Item Schematics ----------------- None Robot Schematics ------------------ None Fabricated ------------ Nothing Repaired ---------- Lgt. Treads | 63% | -9/Materials Shield Generator | 33% | -8/Materials Studied --------- None Alien Tech Used ----------------- None Achievements -------------- DATA ERROR: Steam Global Achievement% For Emergencies Only I Have A Map? Organ Harvest Resistances Are Futile That Tickles There's More Where That Came From Challenges ------------ None Game ------ Seed GlidesysSwarmField Manual? 0 Play Time 01:24:08 Cumulative 8.8 hours Start 2026.04.27 @ 16:14:37 End 2026.04.27 @ 17:44:00 Sessions 1 Manual Loads 0 Difficulty Rogue Special Mode None Game No. 10 Rogue 10 Adventurer 0 Explorer 0 Win Type - Total 0 Types 0/0/0/0/0/0/0/0/0/0 Lore% 4 Gallery% 11 Achievement% 9 Wizard Run 0 Options --------- Layout 1 ASCII 0 Keyboard 0 Movement Numpad Keybinds 0 Fullscreen 1 Font 24/Smallcaps Map View 50x35 Zoom Use 0% Tactical HUD 1 Map Filters NONE Filters NONE Steam 1 RUN: 5176e520-ec43-45ae-9196-d657a528523c